fUST/lending_fUST_20250228
["ID","MTS","AMOUNT","RATE_DAILY","PERIOD"]
[354826483,1740721839718,-784.74,0.00054794,120]
[354826485,1740721839727,-500.0,0.00054794,120]
[354826486,1740721839737,-500.0,0.00054794,120]
[354826487,1740721839747,-500.0,0.00054794,120]
[354826488,1740721839756,-500.0,0.00054794,120]
[354826489,1740721839766,-500.0,0.00054794,120]
[354826490,1740721839775,-1000.0,0.00054794,120]
[354826491,1740721839786,-500.0,0.00054794,120]
[354826492,1740721839795,-500.0,0.00054794,120]
[354826493,1740721839805,-500.0,0.00054794,120]
[354826494,1740721839814,-500.0,0.00054794,120]
[354826495,1740721839824,-509.26847816,0.00054794,120]
[354826496,1740721839833,-500.0,0.00054794,120]
[354826497,1740721839843,-500.0,0.00054794,120]
[354826498,1740721839853,-605.91761643,0.00054794,120]
[354826499,1740721839863,-500.0,0.00054794,120]
[354826500,1740721839872,-500.0,0.00054794,120]
[354826501,1740721839882,-500.0,0.00054794,120]
[354826502,1740721839891,-500.0,0.00054794,120]
[354826504,1740721839901,-500.0,0.00054794,120]
[354826506,1740721839911,-300.0,0.00054794,120]
[354826507,1740721839920,-500.0,0.00054794,120]
[354826509,1740721839931,-500.0,0.00054794,2]
[354826510,1740721839941,-500.52759193,0.00054794,120]
[354826511,1740721839950,-500.0,0.00054794,120]
[354826512,1740721839960,-500.0,0.00054794,120]
[354826513,1740721839969,-500.0,0.00054794,120]
[354826514,1740721839979,-500.0,0.00054794,120]
[354826515,1740721839988,-500.0,0.00054794,120]
[354826516,1740721839997,-500.0,0.00054794,120]
[354826517,1740721840007,-500.0,0.00054794,120]
[354826518,1740721840016,-500.0,0.00054794,120]
[354826519,1740721840026,-500.0,0.00054794,120]
[354826520,1740721840035,-500.0,0.00054794,120]
[354826521,1740721840045,-500.0,0.00054794,120]
[354826522,1740721840054,-500.0,0.00054794,120]
[354826523,1740721840064,-500.0,0.00054794,120]
[354826524,1740721840073,-500.0,0.00054794,120]
[354826525,1740721840082,-500.0,0.00054794,120]
[354826526,1740721840091,-501.51128909,0.00054794,120]
[354826527,1740721840100,-488.56,0.00054794,120]
[354826528,1740721840109,-500.0,0.00054794,120]
[354826529,1740721840119,-500.0,0.00054794,120]
[354826530,1740721840128,-654.73,0.00054794,120]
[354826531,1740721840137,-1000.0,0.00054794,120]
[354826532,1740721840146,-1325.23,0.00054794,15]
[354826533,1740721840155,-500.0,0.00054794,120]
[354826534,1740721840164,-500.0,0.00054794,120]
[354826535,1740721840173,-500.0,0.00054794,120]
[354826536,1740721840185,-500.0,0.00054794,120]
[354826537,1740721840193,-500.0,0.00054794,120]
[354826538,1740721840202,-500.0,0.00054794,120]
[354826539,1740721840211,-500.0,0.00054794,120]
[354826540,1740721840220,-500.0,0.00054794,120]
[354826541,1740721840229,-500.0,0.00054794,120]
[354826542,1740721840238,-355.88290634,0.00054794,120]
[354826543,1740721840247,-264.5681138,0.00054794,120]
[354826544,1740721840259,-550.66,0.00054794,120]
[354826545,1740721840268,-500.0,0.00054794,120]
[354826546,1740721840277,-500.0,0.00054794,120]
[354826547,1740721840286,-500.0,0.00054794,120]
[354826548,1740721840296,-500.0,0.00054794,120]
[354826549,1740721840304,-500.0,0.00054794,120]
[354826550,1740721840313,-500.0,0.00054794,120]
[354826551,1740721840322,-552.08940437,0.00054794,120]
[354826552,1740721840331,-500.0,0.00054794,120]
[354826553,1740721840341,-500.0,0.00054794,120]
[354826554,1740721840351,-500.0,0.00054794,120]
[354826555,1740721840360,-500.0,0.00054794,120]
[354826556,1740721840369,-500.0,0.00054794,120]
[354826557,1740721840379,-500.0,0.00054794,120]
[354826558,1740721840389,-500.0,0.00054794,120]
[354826559,1740721840398,-534.3790959,0.00054794,120]
[354826560,1740721840409,-500.0,0.00054794,120]
[354826561,1740721840418,-500.0,0.00054794,120]
[354826562,1740721840428,-500.0,0.00054794,120]
[354826563,1740721840438,-500.0,0.00054794,120]
[354826564,1740721840448,-500.0,0.00054794,120]
[354826565,1740721840458,-500.0,0.00054794,120]
[354826566,1740721840468,-500.0,0.00054794,120]
[354826567,1740721840477,-500.0,0.00054794,120]
[354826568,1740721840487,-500.0,0.00054794,120]
[354826569,1740721840496,-500.0,0.00054794,120]
[354826570,1740721840505,-500.0,0.00054794,120]
[354826571,1740721840514,-500.0,0.00054794,120]
[354826572,1740721840524,-728.3,0.00054794,120]
[354826573,1740721840533,-500.0,0.00054794,120]
[354826574,1740721840542,-500.0,0.00054794,120]
[354826575,1740721840552,-501.9700482,0.00054794,120]
[354826576,1740721840562,-500.0,0.00054794,120]
[354826577,1740721840571,-500.0,0.00054794,30]
[354826578,1740721840581,-502.6046389,0.00054794,120]
[354826579,1740721840590,-500.0,0.00054794,120]
[354826580,1740721840600,-500.0,0.00054794,120]
[354826581,1740721840609,-500.0,0.00054794,120]
[354826582,1740721840619,-500.0,0.00054794,120]
[354826583,1740721840628,-500.0,0.00054794,120]
[354826584,1740721840637,-500.0,0.00054794,120]
[354826585,1740721840647,-500.0,0.00054794,120]
[354826586,1740721840656,-500.0,0.00054794,120]
[354826587,1740721840665,-500.83126035,0.00054794,120]
[354826588,1740721840680,-500.0,0.00054794,120]
[354826589,1740721840692,-500.0,0.00054794,120]
[354826590,1740721840705,-500.0,0.00054794,120]
[354826591,1740721840718,-500.0,0.00054794,120]
[354826592,1740721840731,-510.27539894,0.00054794,120]
[354826593,1740721840741,-500.0,0.00054794,120]
[354826594,1740721840752,-500.0,0.00054794,120]
[354826595,1740721840764,-500.0,0.00054794,120]
[354826596,1740721840776,-500.0,0.00054794,120]
[354826597,1740721840787,-500.0,0.00054794,120]
[354826598,1740721840799,-500.0,0.00054794,120]
[354826599,1740721840811,-500.0,0.00054794,120]
[354826600,1740721840823,-500.0,0.00054794,120]
[354826601,1740721840835,-500.0,0.00054794,120]
[354826602,1740721840848,-551.86,0.00054794,120]
[354826603,1740721840860,-500.0,0.00054794,120]
[354826604,1740721840872,-500.0,0.00054794,120]
[354826605,1740721840884,-500.0,0.00054794,120]
[354826606,1740721840895,-502.29000855,0.00054794,120]
[354826607,1740721840907,-500.0,0.00054794,120]
[354826608,1740721840919,-500.0,0.00054794,120]
[354826609,1740721840932,-500.0,0.00054794,120]
[354826610,1740721840943,-616.24029548,0.00054794,120]
[354826611,1740721840955,-698.74,0.00054794,120]
[354826612,1740721840967,-500.0,0.00054794,120]
[354826613,1740721840978,-500.0,0.00054794,120]
[354826614,1740721840990,-501.30967495,0.00054794,120]
[354826615,1740721841000,-500.0,0.00054794,120]
[354826616,1740721841010,-529.03076244,0.00054794,120]
[354826617,1740721841022,-500.0,0.00054794,120]
[354826618,1740721841033,-500.0,0.00054794,120]
[354826619,1740721841044,-500.0,0.00054794,120]
[354826620,1740721841055,-500.0,0.00054794,120]
[354826621,1740721841067,-500.0,0.00054794,120]
[354826622,1740721841078,-1000.0,0.00054794,20]
[354826623,1740721841092,-500.0,0.00054794,120]
[354826624,1740721841104,-500.0,0.00054794,120]
[354826625,1740721841116,-500.0,0.00054794,120]
[354826626,1740721841129,-500.0,0.00054794,120]
[354826627,1740721841141,-500.0,0.00054794,120]
[354826628,1740721841154,-500.0,0.00054794,120]
[354826629,1740721841164,-500.0,0.00054794,120]
[354826630,1740721841175,-500.0,0.00054794,120]
[354826631,1740721841189,-500.0,0.00054794,120]
[354826632,1740721841199,-500.0,0.00054794,2]
[354826633,1740721841213,-500.0,0.00054794,120]
[354826634,1740721841225,-500.79905131,0.00054794,120]
[354826635,1740721841237,-2000.0,0.00054794,2]
[354826636,1740721841250,-169.40339004,0.00054794,120]
[354826637,1740721841263,-643.60683448,0.00054794,120]
[354826638,1740721841276,-500.0,0.00054794,120]
[354826639,1740721841286,-239.16623068,0.00054794,120]
[354826640,1740721841297,-500.9154904,0.00054794,120]
[354826641,1740721841308,-500.0,0.00054794,120]
[354826642,1740721841320,-500.0,0.00054794,120]
[354826643,1740721841331,-500.0,0.00054794,120]
[354826644,1740721841343,-508.49539369,0.00054794,120]
[354826645,1740721841354,-500.0,0.00054794,120]
[354826646,1740721841365,-500.8048254,0.00054794,120]
[354826647,1740721841375,-483.78439709,0.00054794,120]
[354826648,1740721841385,-507.34441035,0.00054794,120]
[354826649,1740721841396,-500.95873958,0.00054794,120]
[354826650,1740721841407,-500.0,0.00054794,120]
[354826651,1740721841417,-500.0,0.00054794,120]
[354826652,1740721841430,-500.0,0.00054794,120]
[354826653,1740721841441,-500.0,0.00054794,120]
[354826654,1740721841451,-500.0,0.00054794,120]
[354826655,1740721841462,-500.0,0.00054794,120]
[354826656,1740721841473,-500.0,0.00054794,120]
[354826657,1740721841483,-386.85460156,0.00054794,120]
[354826658,1740721841494,-500.0,0.00054794,120]
[354826659,1740721841504,-500.0,0.00054794,120]
[354826660,1740721841515,-500.0,0.00054794,120]
[354826661,1740721841526,-500.0,0.00054794,120]
[354826662,1740721841536,-500.0,0.00054794,120]
[354826663,1740721841547,-3284.78,0.00054794,120]
[354826664,1740721841560,-500.0,0.00054794,120]
[354826665,1740721841571,-374.20775426,0.00054794,120]
[354826666,1740721841582,-500.0,0.00054794,120]
[354826667,1740721841594,-511.32,0.00054794,120]
[354826668,1740721841606,-500.0,0.00054794,120]
[354826669,1740721841616,-548.7727983,0.00054794,120]
[354826670,1740721841627,-500.0,0.00054794,120]
[354826671,1740721841637,-500.0,0.00054794,120]
[354826672,1740721841648,-500.0,0.00054794,120]
[354826673,1740721841659,-500.0,0.00054794,120]
[354826674,1740721841670,-500.0,0.00054794,120]
[354826675,1740721841681,-500.0,0.00054794,120]
[354826676,1740721841692,-500.0,0.00054794,120]
[354826677,1740721841703,-500.0,0.00054794,120]
[354826678,1740721841714,-502.4878232,0.00054794,120]
[354826679,1740721841724,-270.41956514,0.00054794,120]
[354826680,1740721841735,-500.0,0.00054794,120]
[354826681,1740721841746,-500.0,0.00054794,120]
[354826682,1740721841756,-500.0,0.00054794,120]
[354826683,1740721841767,-500.0,0.00054794,120]
[354826684,1740721841777,-500.0,0.00054794,120]
[354826685,1740721841788,-500.0,0.00054794,120]
[354826686,1740721841799,-573.02,0.00054794,120]
[354826687,1740721841809,-615.86,0.00054794,120]
[354826688,1740721841820,-527.07859222,0.00054794,120]
[354826689,1740721841830,-500.0,0.00054794,120]
[354826690,1740721841840,-500.0,0.00054794,120]
[354826691,1740721841851,-500.0,0.00054794,120]
[354826692,1740721841862,-751.01,0.00054794,120]
[354826693,1740721841872,-500.0,0.00054794,120]
[354826694,1740721841882,-1600.11,0.00054794,120]
[354826695,1740721841893,-500.0,0.00054794,120]
[354826696,1740721841903,-500.0,0.00054794,120]
[354826697,1740721841914,-500.0,0.00054794,120]
[354826698,1740721841925,-500.0,0.00054794,120]
[354826699,1740721841937,-500.0,0.00054794,120]
[354826700,1740721841948,-500.0,0.00054794,120]
[354826701,1740721841958,-503.92680518,0.00054794,120]
[354826702,1740721841969,-1146.98,0.00054794,120]
[354826703,1740721841985,-500.0,0.00054794,120]
[354826704,1740721841995,-500.0,0.00054794,120]
[354826705,1740721842005,-500.0,0.00054794,120]
[354826706,1740721842016,-500.0,0.00054794,120]
[354826707,1740721842027,-500.0,0.00054794,120]
[354826708,1740721842037,-500.0,0.00054794,120]
[354826709,1740721842048,-500.0,0.00054794,120]
[354826710,1740721842059,-1531.32,0.00054794,120]
[354826711,1740721842069,-500.0,0.00054794,120]
[354826712,1740721842080,-500.0,0.00054794,120]
[354826713,1740721842090,-500.0,0.00054794,120]
[354826714,1740721842101,-500.0,0.00054794,120]
[354826715,1740721842111,-500.0,0.00054794,120]
[354826716,1740721842121,-3019.16,0.00054794,120]
[354826717,1740721842131,-500.0,0.00054794,120]
[354826718,1740721842142,-310.83635084,0.00054794,45]
[354826719,1740721842153,-500.0,0.00054794,120]
[354826720,1740721842163,-690.57,0.00054794,120]
[354826721,1740721842174,-500.0,0.00054794,120]
[354826722,1740721842187,-2472.42,0.00054794,120]
[354826723,1740721842197,-500.0,0.00054794,120]
[354826724,1740721842207,-500.0,0.00054794,120]
[354826725,1740721842218,-500.0,0.00054794,120]
[354826726,1740721842229,-500.0,0.00054794,30]
[354826727,1740721842239,-500.0,0.00054794,120]
[354826728,1740721842250,-500.0,0.00054794,120]
[354826729,1740721842265,-501.91068199,0.00054794,120]
[354826730,1740721842276,-505.01,0.00054794,120]
[354826731,1740721842286,-500.0,0.00054794,120]
[354826732,1740721842297,-500.0,0.00054794,120]
[354826733,1740721842308,-401.13807528,0.00054794,120]
[354826734,1740721842317,-500.0,0.00054794,120]
[354826735,1740721842326,-500.0,0.00054794,120]
[354826750,1740721842516,-500.0,0.00054794,120]
[354826753,1740721842527,-500.0,0.00054794,120]
[354826757,1740721842536,-500.0,0.00054794,120]
[354826761,1740721842546,-609.83553474,0.00054794,120]
[354826763,1740721842556,-500.0,0.00054794,120]
[354826765,1740721842565,-500.0,0.00054794,120]
[354826767,1740721842574,-500.0,0.00054794,120]
[354826770,1740721842584,-1672.25,0.00054794,120]
[354826772,1740721842593,-5953.37,0.00054794,120]
[354826777,1740721842603,-500.0,0.00054794,120]
[354826781,1740721842612,-500.0,0.00054794,120]
[354826784,1740721842621,-502.49890242,0.00054794,120]
[354826787,1740721842630,-500.0,0.00054794,120]
[354826789,1740721842639,-644.18,0.00054794,120]
[354826791,1740721842649,-500.0,0.00054794,120]
[354826793,1740721842658,-405.77493244,0.00054794,120]
[354826795,1740721842667,-162.69977594,0.00054794,120]
[354826797,1740721842676,-500.0,0.00054794,120]
[354826799,1740721842687,-2078.2,0.00054794,120]
[354826801,1740721842696,-500.0,0.00054794,120]
[354826803,1740721842706,-500.0,0.00054794,120]
[354826807,1740721842715,-45299.41,0.00054794,7]
[354826811,1740721842724,-1247.1,0.00054794,120]
[354826814,1740721842733,-500.0,0.00054794,120]
[354826818,1740721842743,-500.0,0.00054794,120]
[354826821,1740721842752,-500.0,0.00054794,120]
[354826824,1740721842762,-1632.18,0.00054794,120]
[354826826,1740721842772,-500.0,0.00054794,120]
[354826828,1740721842781,-500.0,0.00054794,120]
[354826830,1740721842791,-1084.93,0.00054794,120]
[354826832,1740721842800,-1000.0,0.00054794,2]
[354826834,1740721842810,-410.52254853,0.00054794,120]
[354826836,1740721842820,-500.26033691,0.00054794,120]
[354826838,1740721842829,-500.0,0.00054794,120]
[354826840,1740721842840,-500.0,0.00054794,120]
[354826842,1740721842849,-500.0,0.00054794,120]
[354826844,1740721842859,-500.0,0.00054794,120]
[354826846,1740721842868,-500.0,0.00054794,120]
[354826847,1740721842878,-500.0,0.00054794,120]
[354826848,1740721842887,-502.54940702,0.00054794,120]
[354826849,1740721842897,-1110.39,0.00054794,120]
[354826851,1740721842906,-500.0,0.00054794,120]
[354826853,1740721842915,-500.0,0.00054794,120]
[354826855,1740721842924,-500.0,0.00054794,120]
[354826857,1740721842936,-500.0,0.00054794,120]
[354826859,1740721842945,-26455.06,0.00054794,120]
[354826860,1740721842954,-500.0,0.00054794,120]
[354826862,1740721842964,-1810.81,0.00054794,120]
[354826863,1740721842974,-404.8379,0.00054794,120]
[354826864,1740721842983,-500.0,0.00054794,120]
[354826865,1740721842993,-504.97907582,0.00054794,120]
[354826866,1740721843002,-500.0,0.00054794,120]
[354826867,1740721843011,-500.0,0.00054794,120]
[354826868,1740721843020,-500.0,0.00054794,120]
[354826869,1740721843029,-500.0,0.00054794,120]
[354826870,1740721843038,-500.0,0.00054794,120]
[354826871,1740721843047,-500.0,0.00054794,120]
[354826872,1740721843057,-816.8,0.00054794,120]
[354826873,1740721843066,-500.0,0.00054794,120]
[354826874,1740721843075,-1287.36,0.00054794,120]
[354826875,1740721843085,-500.0,0.00054794,120]
[354826876,1740721843094,-500.0,0.00054794,120]
[354826877,1740721843103,-500.0,0.00054794,120]
[354826878,1740721843113,-500.0,0.00054794,120]
[354826879,1740721843122,-518.13,0.00054794,120]
[354826880,1740721843132,-500.0,0.00054794,120]
[354826881,1740721843142,-500.0,0.00054794,120]
[354826882,1740721843151,-620.92,0.00054794,120]
[354826883,1740721843161,-500.0,0.00054794,120]
[354826884,1740721843172,-500.0,0.00054794,120]
[354826885,1740721843184,-833.08,0.00054794,120]
[354826886,1740721843194,-238.77,0.00054794,120]
[354826887,1740721843204,-500.0,0.00054794,120]
[354826888,1740721843214,-400.69957813,0.00054794,120]
[354826889,1740721843224,-500.0,0.00054794,120]
[354826890,1740721843233,-500.0,0.00054794,120]
[354826891,1740721843243,-500.0,0.00054794,120]
[354826892,1740721843253,-500.0,0.00054794,120]
[354826893,1740721843263,-500.0,0.00054794,120]
[354826894,1740721843276,-500.0,0.00054794,120]
[354826896,1740721843286,-522.43,0.00054794,120]
[354826898,1740721843295,-500.0,0.00054794,120]
[354826900,1740721843305,-502.01907183,0.00054794,120]
[354826902,1740721843314,-500.0,0.00054794,120]
[354826904,1740721843323,-500.0,0.00054794,120]
[354826906,1740721843332,-1594.21,0.00054794,120]
[354826908,1740721843342,-500.0,0.00054794,120]
[354826910,1740721843353,-940.21,0.00054794,120]
[354826912,1740721843362,-500.0,0.00054794,120]
[354826914,1740721843372,-531.21,0.00054794,120]
[354826916,1740721843381,-494.35905183,0.00054794,120]
[354826918,1740721843391,-1327.08,0.00054794,120]
[354826919,1740721843400,-500.0,0.00054794,120]
[354826920,1740721843410,-500.0,0.00054794,120]
[354826921,1740721843419,-500.0,0.00054794,120]
[354826922,1740721843428,-500.0,0.00054794,120]
[354826923,1740721843440,-500.0,0.00054794,120]
[354826924,1740721843449,-500.0,0.00054794,2]
[354826925,1740721843458,-899.2,0.00054794,120]
[354826926,1740721843467,-500.0,0.00054794,120]
[354826927,1740721843477,-500.0,0.00054794,120]
[354826928,1740721843486,-500.0,0.00054794,120]
[354826929,1740721843495,-500.0,0.00054794,120]
[354826930,1740721843505,-610.72,0.00054794,120]
[354826931,1740721843514,-500.0,0.00054794,120]
[354826932,1740721843523,-500.0,0.00054794,120]
[354826933,1740721843532,-771.34,0.00054794,120]
[354826934,1740721843541,-500.0,0.00054794,120]
[354826935,1740721843551,-895.95,0.00054794,120]
[354826936,1740721843560,-7649.73,0.00054794,7]
[354826937,1740721843569,-500.0,0.00054794,120]
[354826938,1740721843578,-5214.59,0.00054794,120]
[354826939,1740721843588,-712.64,0.00054794,120]
[354826940,1740721843597,-500.0,0.00054794,120]
[354826941,1740721843607,-1000.0,0.00054795,10]
[354826942,1740721843616,-1000.0,0.00054795,10]
[354826943,1740721843625,-151.0,0.00054795,120]
[354826944,1740721843635,-697.87,0.000548,30]
[354826945,1740721843644,-376.62063911,0.000549,13]
[354826946,1740721843654,-732.0,0.00055,120]
[354826947,1740721843663,-209.0,0.00055,120]
[354826948,1740721843673,-500.0,0.00055341,35]
[354826949,1740721843685,-249.19552966,0.00055403,15]
[354826950,1740721843695,-500.0,0.00055889,40]
[354826952,1740721843704,-2000.0,0.0005589,4]
[354826953,1740721843713,-301.51868443,0.00056437,45]
[354826955,1740721843723,-2000.0,0.00056986,6]
[354826957,1740721843732,-732.0,0.00057,120]
[354826958,1740721843742,-209.0,0.00057,120]
[354826960,1740721843751,-2000.0,0.00058082,20]
[354826962,1740721843769,-732.0,0.00059,120]
[354826963,1740721843781,-209.0,0.00059,120]
[354826964,1740721843791,-2000.0,0.00059178,22]
[354826965,1740721843802,-300.0,0.0006,33]
[354826967,1740721843812,-2534.54,0.00060173,120]
[354826968,1740721843823,-1005.78819921,0.00060252,15]
[354826969,1740721843834,-1000.0,0.00060252,15]
[354826970,1740721843845,-499.76969054,0.00060252,15]
[354826971,1740721843855,-193.131,0.00060926,120]
[354826972,1740721843864,-732.0,0.00061,120]
[354826973,1740721843874,-209.0,0.00061,120]
[354826974,1740721843884,-300.0,0.000615,34]
[354826975,1740721843895,-732.0,0.00063,120]
[354826976,1740721843904,-209.0,0.00063,120]
[354826977,1740721843915,-300.0,0.00063,35]
[354826978,1740721843924,-500.0,0.00063013,120]
[354826979,1740721843936,-697.87,0.000645,30]
[354826980,1740721843946,-300.0,0.000645,36]
[354826981,1740721843956,-18917.5135788,0.000649,2]
[354826982,1740721843966,-500.02756813,0.000649,15]
[354826983,1740721843976,-500.0,0.000649,14]
[354826984,1740721843986,-500.0,0.000649,2]
[354826985,1740721843996,-500.0,0.000649,14]
[354826986,1740721844006,-500.0,0.000649,14]
[354826987,1740721844015,-500.0,0.000649,15]
[354826988,1740721844025,-732.0,0.00065,120]
[354826989,1740721844035,-209.0,0.00065,120]
[354826990,1740721844044,-2534.54,0.00065652,120]
[354826991,1740721844054,-300.0,0.00066,37]
[354826992,1740721844064,-732.0,0.00067,120]
[354826993,1740721844074,-209.0,0.00067,120]
[354826994,1740721844083,-300.0,0.000675,38]
[354826995,1740721844093,-666.0,0.00068493,2]
[354826996,1740721844102,-1000.0,0.00068493,60]
[354826997,1740721844112,-500.0,0.00068493,120]
[354826998,1740721844122,-1000.0,0.00068493,2]
[354826999,1740721844131,-1013.0,0.00068493,2]
[354827000,1740721844141,-300.0,0.00069,39]
[354827001,1740721844151,-3000.0,0.0007,30]
[354827002,1740721844161,-1000.0,0.0007,30]
[354827003,1740721844170,-1500.0,0.00070271,15]
[354827004,1740721844182,-1000.0,0.00070379,14]
[354827005,1740721844192,-1060.15072661,0.00070379,2]
[354827006,1740721844202,-1000.0,0.00070379,14]
[354827007,1740721844211,-417.42535846,0.00070379,14]
[354827008,1740721844221,-1000.0,0.00070379,15]
[354827009,1740721844231,-305.0,0.000705,40]
[354827010,1740721844240,-1000.0,0.00070716,120]
[354827011,1740721844250,-280.335378,0.00070817,30]
[354827012,1740721844260,-2534.54,0.00071132,120]
[354827013,1740721844271,-1000.0,0.00072,30]
[354827014,1740721844281,-343.73421687,0.00073,120]
[354827015,1740721844290,-392.07,0.000733,2]
[354827016,1740721844301,-697.87,0.00074,30]
[354827017,1740721844311,-1000.0,0.00074,30]
[354827018,1740721844320,-2585.5688989,0.00074,120]
[354827019,1740721844330,-1576.4594649,0.00074236,5]
[354827020,1740721844340,-156.0,0.000743,30]
[354827021,1740721844350,-11842.94945157,0.0007431,30]
[354827022,1740721844496,-10226.83359662,0.0007431,30]
[354827023,1740721845278,-31.04142948,0.0007431,30]
[354827024,1740721845290,-366.66185062,0.0007431,30]
[354827039,1740721846215,-3147.91,0.00054794,120]
[354827040,1740721846225,-590.2,0.00054794,120]
[354827041,1740721846235,-2218.89,0.0007431,30]
[354827042,1740721846385,-3860.38275018,0.0007431,30]
[354827045,1740721940705,8753.77306266,0.00045234,2]
[354827046,1740721940729,8763.54039964,0.00045234,2]
[354827058,1740722654255,3000.0,0.0007437,120]
[354827060,1740722804359,17181.45568663,0.0007437,30]
[354827061,1740722828147,-151.0,0.00045,120]
[354827062,1740722828169,-9.96298693,0.00045233,5]
[354827063,1740722835113,-540.03701307,0.00045233,5]
[354827064,1740722835136,-176.05641808,0.00045234,2]
[354827065,1740722835169,-7000.43813863,0.00045234,2]
[354827066,1740722837105,-160.78358687,0.00045234,2]
[354827067,1740722852085,-700.0,0.00031,10]
[354827068,1740722852108,-700.0,0.00038,30]
[354827069,1740722852130,-700.0,0.00038,30]
[354827070,1740722852151,-700.0,0.00038,30]
[354827071,1740722852173,-700.0,0.00038,30]
[354827072,1740722852195,-180.51159898,0.00038,30]
[354827073,1740722853092,-227.65272548,0.00031,10]
[354827074,1740722856449,700.0,0.00028,30]
[354827075,1740722856866,700.0,0.00028,30]
[354827076,1740722857217,700.0,0.00028,30]
[354827077,1740722857566,700.0,0.00028,30]
[354827078,1740722857932,700.0,0.00028,30]
[354827079,1740722858282,700.0,0.00028,30]
[354827080,1740722858628,700.0,0.00028,30]
[354827081,1740722858992,1200.44124047,0.00028,30]
[354827082,1740722953101,-400.0,0.00030999,2]
[354827083,1740722953123,-472.34727452,0.00031,10]
[354827084,1740722953146,-700.0,0.00031,10]
[354827085,1740722953168,-700.0,0.00031,10]
[354827086,1740722953189,-700.0,0.00031,10]
[354827087,1740722953210,-700.0,0.00031,10]
[354827088,1740722953231,-700.0,0.00031,10]
[354827089,1740722953251,-700.0,0.00031,10]
[354827090,1740722953273,-700.0,0.00031,10]
[354827091,1740722953295,-190.0,0.00033376,2]
[354827092,1740722953316,-283.50073644,0.000362,98]
[354827093,1740722953337,-519.48840102,0.00038,30]
[354827094,1740722953357,-700.0,0.00038,30]
[354827095,1740722953379,-700.0,0.00038,30]
[354827096,1740722953400,-700.0,0.00038,30]
[354827097,1740722953421,-700.0,0.00038,30]
[354827098,1740722953441,-399.3800469,0.00043864,2]
[354827099,1740722953461,-160.0,0.00045,90]
[354827100,1740722953484,-45.40839412,0.00045234,2]
[354827101,1740722953504,-381.9899999,0.00046246,120]
[354827102,1740722953524,-266.2444823,0.00046583,120]
[354827103,1740722953552,-364.0666177,0.000469,10]
[354827104,1740722953572,-7320.69835987,0.00047045,40]
[354827105,1740722953607,-1034.86041253,0.00047045,40]
[354827106,1740722953629,-160.0,0.00047682,90]
[354827107,1740722953651,-818.0,0.00049,120]
[354827108,1740722953674,-175.0,0.00049,120]
[354827109,1740722953696,-195.0,0.00049,120]
[354827110,1740722953717,-170.0,0.000499,120]
[354827111,1740722953740,-157.0,0.000503,120]